fUST/lending_fUST_20250523
["ID","MTS","AMOUNT","RATE_DAILY","PERIOD"]
[362083256,1747983046961,-729.91781369,0.00016432,2]
[362083257,1747983046970,-729.91781369,0.00016432,2]
[362083258,1747983046991,-729.91781369,0.00016432,2]
[362083259,1747983047002,-711.66986835,0.00016432,2]
[362083260,1747983047012,-711.66986835,0.00016432,2]
[362083261,1747983047022,-711.66986835,0.00016432,2]
[362083262,1747983047032,-711.66986835,0.00016432,2]
[362083263,1747983047041,-711.66986835,0.00016432,2]
[362083264,1747983047050,-711.66986835,0.00016432,2]
[362083265,1747983047060,-711.66986835,0.00016432,2]
[362083266,1747983047070,-711.66986835,0.00016432,2]
[362083267,1747983047080,-711.66986835,0.00016432,2]
[362083268,1747983047090,-711.66986835,0.00016432,2]
[362083269,1747983047100,-711.66986835,0.00016432,2]
[362083270,1747983047109,-711.66986835,0.00016432,2]
[362083271,1747983047119,-711.66986835,0.00016432,2]
[362083272,1747983047129,-711.66986835,0.00016432,2]
[362083273,1747983047138,-711.66986835,0.00016432,2]
[362083274,1747983047147,-711.66986835,0.00016432,2]
[362083275,1747983047157,-711.66986835,0.00016432,2]
[362083276,1747983047166,-711.66986835,0.00016432,2]
[362083277,1747983047175,-711.66986835,0.00016432,2]
[362083278,1747983047185,-711.66986835,0.00016432,2]
[362083279,1747983047195,-711.66986835,0.00016432,2]
[362083280,1747983047204,-711.66986835,0.00016432,2]
[362083281,1747983047214,-711.66986835,0.00016432,2]
[362083282,1747983047226,-711.66986835,0.00016432,2]
[362083283,1747983047236,-711.66986835,0.00016432,2]
[362083284,1747983047245,-711.66986835,0.00016432,2]
[362083285,1747983047255,-711.66986835,0.00016432,2]
[362083286,1747983047266,-711.66986835,0.00016432,2]
[362083287,1747983047276,-711.66986835,0.00016432,2]
[362083288,1747983047286,-711.66986835,0.00016432,2]
[362083289,1747983047297,-711.66986835,0.00016432,2]
[362083290,1747983047306,-711.66986835,0.00016432,2]
[362083291,1747983047316,-711.66986838,0.00016432,2]
[362083292,1747983047326,-711.66986838,0.00016432,2]
[362083293,1747983047336,-711.66986838,0.00016432,2]
[362083294,1747983047346,-711.66986838,0.00016432,2]
[362083295,1747983047356,-434.20138374,0.00016438,2]
[362083296,1747983047366,-310.0,0.00016438,2]
[362083297,1747983047375,-501.58415416,0.00016438,2]
[362083298,1747983047385,-430.0,0.00016438,2]
[362083299,1747983047395,-430.0,0.00016438,2]
[362083300,1747983047405,-430.0,0.00016438,2]
[362083301,1747983047414,-430.0,0.00016438,2]
[362083302,1747983047424,-430.0,0.00016438,2]
[362083303,1747983047434,-403.40081289,0.00016438,2]
[362083304,1747983047443,-300.0,0.00016438,2]
[362083305,1747983047454,-374.2693132,0.00016438,2]
[362083306,1747983047463,-430.0,0.00016438,2]
[362083307,1747983047473,-151.0,0.00016438,2]
[362083308,1747983047483,-430.0,0.00016438,2]
[362083309,1747983047493,-430.0,0.00016438,2]
[362083310,1747983047503,-434.18607446,0.00016438,2]
[362083311,1747983047513,-434.02501559,0.00016438,2]
[362083312,1747983047524,-313.61493662,0.00016438,2]
[362083313,1747983047534,-347.46366732,0.00016438,2]
[362083314,1747983047543,-435.45420519,0.00016438,2]
[362083315,1747983047553,-430.16432355,0.00016438,2]
[362083316,1747983047562,-404.6300205,0.00016438,2]
[362083317,1747983047572,-432.78003452,0.00016438,2]
[362083318,1747983047582,-431.34354376,0.00016438,2]
[362083319,1747983047598,-452.30835389,0.00016438,2]
[362083320,1747983047609,-332.4289685,0.00016438,2]
[362083321,1747983047619,-430.0,0.00016438,2]
[362083322,1747983047629,-360.50590927,0.00016438,2]
[362083323,1747983047639,-430.0,0.00016438,2]
[362083324,1747983047649,-506.37363988,0.00016438,2]
[362083325,1747983047658,-216.43514791,0.00016438,2]
[362083326,1747983047668,-430.0,0.00016438,2]
[362083327,1747983047678,-430.0,0.00016438,2]
[362083328,1747983047688,-400.0,0.00016438,2]
[362083329,1747983047698,-430.0,0.00016438,2]
[362083330,1747983047708,-419.59352166,0.00016438,2]
[362083331,1747983047718,-451.10032663,0.00016438,2]
[362083332,1747983047727,-430.0,0.00016438,2]
[362083333,1747983047737,-431.16317983,0.00016438,2]
[362083334,1747983047747,-431.17411668,0.00016438,2]
[362083335,1747983047756,-430.0,0.00016438,2]
[362083336,1747983047767,-459.84833107,0.00016438,2]
[362083337,1747983047777,-435.90785922,0.00016438,2]
[362083338,1747983047786,-430.77431841,0.00016438,2]
[362083339,1747983047796,-430.0,0.00016438,2]
[362083340,1747983047806,-434.7548671,0.00016438,2]
[362083341,1747983047816,-435.92778701,0.00016438,2]
[362083342,1747983047826,-505.17312824,0.00016438,2]
[362083343,1747983047836,-430.0,0.00016438,2]
[362083344,1747983047845,-434.10641363,0.00016438,2]
[362083345,1747983047855,-240.17026693,0.00016438,2]
[362083346,1747983047865,-406.71864605,0.00016438,2]
[362083347,1747983047875,-456.64313823,0.00016438,2]
[362083348,1747983047884,-430.0,0.00016438,2]
[362083349,1747983047894,-401.55634106,0.00016438,2]
[362083350,1747983047904,-430.0,0.00016438,2]
[362083351,1747983047913,-430.0,0.00016438,2]
[362083352,1747983047924,-402.51524343,0.00016438,2]
[362083353,1747983047934,-434.46216082,0.00016438,2]
[362083354,1747983047944,-430.0,0.00016438,2]
[362083355,1747983047954,-430.0,0.00016438,2]
[362083356,1747983047963,-430.0,0.00016438,2]
[362083357,1747983047972,-430.0,0.00016438,2]
[362083358,1747983047982,-529.88002527,0.00016438,2]
[362083359,1747983048177,-361.84095569,0.00016438,2]
[362083360,1747983048187,-440.39843658,0.00016438,2]
[362083361,1747983048198,-430.0,0.00016438,2]
[362083362,1747983048209,-430.0,0.00016438,2]
[362083363,1747983048222,-434.67710404,0.00016438,2]
[362083364,1747983048232,-552.33428138,0.00016438,2]
[362083365,1747983048242,-431.79718498,0.00016438,2]
[362083366,1747983048252,-430.0,0.00016438,2]
[362083367,1747983048263,-430.0,0.00016438,2]
[362083368,1747983048274,-439.85312709,0.00016438,2]
[362083369,1747983048284,-430.0,0.00016438,2]
[362083370,1747983048295,-430.0,0.00016438,2]
[362083371,1747983048305,-430.0,0.00016438,2]
[362083372,1747983048314,-439.93442178,0.00016438,2]
[362083373,1747983048324,-430.0,0.00016438,2]
[362083374,1747983048335,-404.78534259,0.00016438,2]
[362083375,1747983048346,-430.0,0.00016438,2]
[362083376,1747983048355,-430.0,0.00016438,2]
[362083377,1747983048366,-430.0,0.00016438,2]
[362083378,1747983048376,-439.96749608,0.00016438,2]
[362083379,1747983048385,-453.94090934,0.00016438,2]
[362083380,1747983048395,-404.79247603,0.00016438,2]
[362083381,1747983048405,-430.0,0.00016438,2]
[362083382,1747983048415,-430.0,0.00016438,2]
[362083383,1747983048425,-340.0,0.00016438,2]
[362083384,1747983048435,-404.13676439,0.00016438,2]
[362083385,1747983048444,-430.0,0.00016438,2]
[362083386,1747983048454,-430.0,0.00016438,2]
[362083387,1747983048464,-430.0,0.00016438,2]
[362083388,1747983048473,-401.2017763,0.00016438,2]
[362083389,1747983048483,-430.0,0.00016438,2]
[362083390,1747983048493,-430.0,0.00016438,2]
[362083391,1747983048502,-435.76093242,0.00016438,2]
[362083392,1747983048512,-435.94716025,0.00016438,2]
[362083393,1747983048523,-430.0,0.00016438,2]
[362083394,1747983048533,-431.44913117,0.00016438,2]
[362083395,1747983048543,-454.95183123,0.00016438,2]
[362083396,1747983048553,-430.0,0.00016438,2]
[362083397,1747983048563,-430.0,0.00016438,2]
[362083398,1747983048573,-430.0,0.00016438,2]
[362083399,1747983048583,-430.0,0.00016438,2]
[362083400,1747983048593,-430.0,0.00016438,2]
[362083401,1747983048602,-437.44561192,0.00016438,2]
[362083402,1747983048613,-430.0,0.00016438,2]
[362083403,1747983048623,-430.0,0.00016438,2]
[362083404,1747983048633,-430.0,0.00016438,2]
[362083405,1747983048644,-430.0,0.00016438,2]
[362083406,1747983048655,-430.0,0.00016438,2]
[362083407,1747983048665,-430.0,0.00016438,2]
[362083408,1747983048676,-430.0,0.00016438,2]
[362083409,1747983048686,-430.0,0.00016438,2]
[362083410,1747983048696,-430.0,0.00016438,2]
[362083411,1747983048706,-436.8446059,0.00016438,2]
[362083412,1747983048716,-397.376007,0.00016438,2]
[362083413,1747983048726,-430.0,0.00016438,2]
[362083414,1747983048737,-430.0,0.00016438,2]
[362083415,1747983048747,-430.0,0.00016438,2]
[362083416,1747983048757,-159.30589285,0.00016438,2]
[362083417,1747983048767,-430.0,0.00016438,2]
[362083418,1747983048778,-311.05179077,0.00016438,2]
[362083419,1747983048788,-430.0,0.00016438,2]
[362083420,1747983048798,-405.52953851,0.00016438,2]
[362083421,1747983048808,-430.0,0.00016438,2]
[362083422,1747983048817,-430.0,0.00016438,2]
[362083423,1747983048827,-430.0,0.00016438,2]
[362083424,1747983048837,-173.58219566,0.00016438,2]
[362083425,1747983048847,-202.68,0.00016438,2]
[362083426,1747983048857,-430.0,0.00016438,2]
[362083427,1747983048867,-430.0,0.00016438,2]
[362083428,1747983048876,-430.0,0.00016438,2]
[362083429,1747983048886,-404.49380786,0.00016438,2]
[362083430,1747983048896,-300.92409891,0.00016438,2]
[362083431,1747983048906,-348.63535569,0.00016438,2]
[362083432,1747983048915,-430.0,0.00016438,2]
[362083433,1747983048925,-430.0,0.00016438,2]
[362083434,1747983048935,-425.0,0.00016438,2]
[362083435,1747983048946,-430.0,0.00016438,2]
[362083436,1747983048956,-290.9141955,0.00016438,2]
[362083437,1747983048965,-430.0,0.00016438,2]
[362083438,1747983048975,-430.0,0.00016438,2]
[362083439,1747983048985,-430.0,0.00016438,2]
[362083440,1747983048994,-266.17576052,0.00016438,2]
[362083441,1747983049004,-300.0,0.00016438,2]
[362083442,1747983049014,-430.0,0.00016438,2]
[362083443,1747983049026,-430.0,0.00016438,2]
[362083444,1747983049035,-430.0,0.00016438,2]
[362083445,1747983049047,-430.0,0.00016438,2]
[362083446,1747983049057,-430.0,0.00016438,2]
[362083447,1747983049066,-430.0,0.00016438,2]
[362083448,1747983049075,-170.37185391,0.00016438,2]
[362083449,1747983049085,-430.0,0.00016438,2]
[362083450,1747983049096,-430.0,0.00016438,2]
[362083451,1747983049106,-430.0,0.00016438,2]
[362083452,1747983049116,-476.0997187,0.00016438,2]
[362083453,1747983049126,-430.0,0.00016438,2]
[362083454,1747983049135,-500.0,0.00016438,2]
[362083455,1747983049144,-430.0,0.00016438,2]
[362083456,1747983049154,-430.0,0.00016438,2]
[362083457,1747983049164,-430.0,0.00016438,2]
[362083458,1747983049174,-430.0,0.00016438,2]
[362083459,1747983049184,-430.0,0.00016438,2]
[362083460,1747983049194,-436.53903306,0.00016438,2]
[362083461,1747983049204,-430.0,0.00016438,2]
[362083462,1747983049216,-430.0,0.00016438,2]
[362083463,1747983049227,-430.0,0.00016438,2]
[362083464,1747983049237,-430.0,0.00016438,2]
[362083465,1747983049248,-430.0,0.00016438,2]
[362083466,1747983049257,-436.26350198,0.00016438,2]
[362083467,1747983049271,-430.0,0.00016438,2]
[362083468,1747983049285,-474.75417145,0.00016438,2]
[362083469,1747983049295,-476.94865884,0.00016438,2]
[362083470,1747983049308,-430.0,0.00016438,2]
[362083471,1747983049318,-430.0,0.00016438,2]
[362083472,1747983049329,-439.52875474,0.00016438,2]
[362083473,1747983049339,-436.34225006,0.00016438,2]
[362083474,1747983049349,-434.9948726,0.00016438,2]
[362083475,1747983049359,-430.0,0.00016438,2]
[362083476,1747983049370,-431.18188258,0.00016438,2]
[362083477,1747983049381,-432.2812488,0.00016438,2]
[362083478,1747983049391,-344.36413875,0.00016438,2]
[362083479,1747983049402,-438.16109547,0.00016438,2]
[362083480,1747983049412,-432.00778279,0.00016438,2]
[362083481,1747983049423,-438.79512699,0.00016438,2]
[362083482,1747983049434,-497.8143131,0.00016438,2]
[362083483,1747983049444,-437.47362798,0.00016438,2]
[362083484,1747983049455,-446.43842016,0.00016438,2]
[362083485,1747983049467,-434.84463496,0.00016438,2]
[362083486,1747983049479,-346.88749031,0.00016438,2]
[362083487,1747983049490,-437.06822049,0.00016438,2]
[362083488,1747983049502,-436.91205884,0.00016438,2]
[362083489,1747983049513,-1013.51420076,0.00016438,2]
[362083490,1747983049529,-435.1930859,0.00016438,2]
[362083491,1747983049540,-350.0,0.00016438,2]
[362083492,1747983049551,-341.56845574,0.00016438,2]
[362083493,1747983049562,-435.56530307,0.00016438,2]
[362083494,1747983049573,-162.5,0.00016438,2]
[362083495,1747983049585,-430.0,0.00016438,2]
[362083496,1747983049596,-430.0,0.00016438,2]
[362083497,1747983049607,-430.59259568,0.00016438,2]
[362083498,1747983049618,-430.0,0.00016438,2]
[362083499,1747983049629,-434.39776715,0.00016438,2]
[362083500,1747983049639,-443.30218969,0.00016438,2]
[362083501,1747983049650,-430.0,0.00016438,2]
[362083502,1747983049660,-420.0,0.00016438,2]
[362083503,1747983049671,-430.0,0.00016438,2]
[362083504,1747983049682,-353.71231112,0.00016438,2]
[362083505,1747983049692,-441.59,0.00016438,2]
[362083506,1747983049702,-430.0,0.00016438,2]
[362083507,1747983049712,-430.0,0.00016438,2]
[362083508,1747983049723,-430.0,0.00016438,2]
[362083509,1747983049732,-430.0,0.00016438,2]
[362083510,1747983049742,-440.97854868,0.00016438,2]
[362083511,1747983049752,-348.51129988,0.00016438,2]
[362083512,1747983049763,-430.0,0.00016438,2]
[362083513,1747983049775,-420.0,0.00016438,2]
[362083514,1747983049786,-430.0,0.00016438,2]
[362083515,1747983049796,-430.0,0.00016438,2]
[362083516,1747983049806,-430.0,0.00016438,2]
[362083517,1747983049816,-430.0,0.00016438,2]
[362083518,1747983049826,-430.0,0.00016438,2]
[362083519,1747983049836,-430.0,0.00016438,2]
[362083520,1747983049846,-430.0,0.00016438,2]
[362083521,1747983049856,-430.0,0.00016438,2]
[362083522,1747983049866,-465.43150531,0.00016438,2]
[362083523,1747983049875,-430.0,0.00016438,2]
[362083524,1747983049885,-430.0,0.00016438,2]
[362083525,1747983049895,-430.0,0.00016438,2]
[362083526,1747983049905,-580.53,0.00016438,2]
[362083527,1747983049914,-430.0,0.00016438,2]
[362083528,1747983049924,-442.68339239,0.00016438,2]
[362083529,1747983049934,-430.0,0.00016438,2]
[362083530,1747983049943,-430.0,0.00016438,2]
[362083531,1747983049953,-430.0,0.00016438,2]
[362083532,1747983049963,-430.0,0.00016438,2]
[362083533,1747983049973,-430.0,0.00016438,2]
[362083534,1747983049983,-408.65311017,0.00016438,2]
[362083535,1747983049994,-455.8121892,0.00016438,2]
[362083536,1747983050003,-741.73,0.00016438,2]
[362083537,1747983050014,-430.0,0.00016438,2]
[362083538,1747983050028,-443.5571818,0.00016438,2]
[362083539,1747983050037,-430.0,0.00016438,2]
[362083540,1747983050046,-448.50581444,0.00016438,2]
[362083541,1747983050056,-430.0,0.00016438,2]
[362083542,1747983050066,-430.0,0.00016438,2]
[362083543,1747983050076,-442.82451361,0.00016438,2]
[362083544,1747983050086,-430.0,0.00016438,2]
[362083545,1747983050096,-440.0,0.00016438,2]
[362083546,1747983050106,-470.0,0.00016438,2]
[362083547,1747983050115,-430.0,0.00016438,2]
[362083548,1747983050126,-902.22,0.00016438,2]
[362083549,1747983050135,-444.98008008,0.00016438,2]
[362083550,1747983050146,-176.83503069,0.00016438,2]
[362083551,1747983050155,-430.0,0.00016438,2]
[362083552,1747983050164,-430.0,0.00016438,2]
[362083553,1747983050175,-430.0,0.00016438,2]
[362083554,1747983050184,-298.79108871,0.00016438,2]
[362083555,1747983050194,-430.0,0.00016438,2]
[362083556,1747983050204,-430.0,0.00016438,2]
[362083557,1747983050215,-408.66051867,0.00016438,2]
[362083558,1747983050227,-430.0,0.00016438,2]
[362083559,1747983050236,-362.75384415,0.00016438,2]
[362083560,1747983050246,-771.28,0.00016438,2]
[362083561,1747983050255,-430.0,0.00016438,2]
[362083562,1747983050266,-430.0,0.00016438,2]
[362083563,1747983050278,-430.0,0.00016438,2]
[362083564,1747983050288,-430.0,0.00016438,2]
[362083565,1747983050298,-430.0,0.00016438,2]
[362083566,1747983050308,-508.68398293,0.00016438,2]
[362083567,1747983050318,-430.0,0.00016438,2]
[362083568,1747983050327,-430.0,0.00016438,2]
[362083569,1747983050337,-430.0,0.00016438,2]
[362083570,1747983050346,-711.34,0.00016438,2]
[362083571,1747983050356,-430.0,0.00016438,2]
[362083572,1747983050366,-873.36,0.00016438,2]
[362083573,1747983050375,-567.05602928,0.00016438,2]
[362083574,1747983050386,-430.0,0.00016438,2]
[362083575,1747983050395,-430.0,0.00016438,2]
[362083576,1747983050405,-430.0,0.00016438,2]
[362083577,1747983050415,-430.0,0.00016438,2]
[362083578,1747983050424,-430.0,0.00016438,2]
[362083579,1747983050435,-430.0,0.00016438,2]
[362083580,1747983050444,-460.81264542,0.00016438,2]
[362083581,1747983050454,-302.65671009,0.00016438,2]
[362083582,1747983050463,-477.10714404,0.00016438,2]
[362083583,1747983050473,-2373.27,0.00016438,2]
[362083584,1747983050482,-430.0,0.00016438,2]
[362083585,1747983050492,-365.16320308,0.00016438,2]
[362083586,1747983050502,-629.06,0.00016438,2]
[362083587,1747983050512,-430.0,0.00016438,2]
[362083588,1747983050523,-301.4525214,0.00016438,2]
[362083589,1747983050532,-430.0,0.00016438,2]
[362083590,1747983050542,-430.0,0.00016438,2]
[362083591,1747983050552,-431.68283633,0.00016438,2]
[362083592,1747983050561,-430.0,0.00016438,2]
[362083593,1747983050570,-430.0,0.00016438,2]
[362083594,1747983050581,-812.97,0.00016438,2]
[362083595,1747983050590,-430.0,0.00016438,2]
[362083596,1747983050600,-430.0,0.00016438,2]
[362083597,1747983050609,-440.0,0.00016438,2]
[362083598,1747983050619,-430.0,0.00016438,2]
[362083599,1747983050628,-430.0,0.00016438,2]
[362083600,1747983050639,-430.52,0.00016438,2]
[362083601,1747983050648,-445.2196465,0.00016438,2]
[362083602,1747983050657,-430.0,0.00016438,2]
[362083603,1747983050667,-432.06876249,0.00016438,2]
[362083604,1747983050677,-710.91,0.00016438,2]
[362083605,1747983050688,-430.0,0.00016438,2]
[362083606,1747983050698,-297.09289174,0.00016438,2]
[362083607,1747983050707,-458.13971711,0.00016438,2]
[362083608,1747983050717,-430.0,0.00016438,2]
[362083609,1747983050727,-430.0,0.00016438,2]
[362083610,1747983050736,-431.22081064,0.00016438,2]
[362083611,1747983050747,-430.0,0.00016438,2]
[362083612,1747983050756,-2329.09,0.00016438,2]
[362083613,1747983050766,-430.0,0.00016438,2]
[362083614,1747983050779,-508.46354388,0.00016438,2]
[362083615,1747983050788,-301.20254369,0.00016438,2]
[362083616,1747983050798,-430.0,0.00016438,2]
[362083617,1747983050807,-430.0,0.00016438,2]
[362083618,1747983050817,-430.0,0.00016438,2]
[362083619,1747983050827,-430.0,0.00016438,2]
[362083620,1747983050836,-530.67,0.00016438,2]
[362083621,1747983050845,-430.0,0.00016438,2]
[362083622,1747983050855,-430.0,0.00016438,2]
[362083623,1747983050864,-430.0,0.00016438,2]
[362083624,1747983050873,-402.26931314,0.00016438,2]
[362083625,1747983050883,-432.6000941,0.00016438,2]
[362083626,1747983050892,-430.0,0.00016438,2]
[362083627,1747983050902,-430.0,0.00016438,2]
[362083628,1747983050911,-430.0,0.00016438,2]
[362083629,1747983050921,-430.0,0.00016438,2]
[362083630,1747983050931,-433.91206048,0.00016438,2]
[362083631,1747983050942,-430.0,0.00016438,2]
[362083632,1747983050951,-430.0,0.00016438,2]
[362083633,1747983050961,-430.0,0.00016438,2]
[362083634,1747983050970,-430.0,0.00016438,2]
[362083635,1747983050980,-426.97712672,0.00016438,2]
[362083636,1747983050989,-225.9076902,0.00016438,2]
[362083637,1747983050998,-714.16,0.00016438,2]
[362083638,1747983051007,-430.0,0.00016438,2]
[362083639,1747983051016,-430.0,0.00016438,2]
[362083640,1747983051026,-450.49114789,0.00016438,2]
[362083641,1747983051035,-430.0,0.00016438,2]
[362083642,1747983051045,-430.0,0.00016438,2]
[362083643,1747983051054,-430.0,0.00016438,2]
[362083644,1747983051064,-955.94,0.00016438,2]
[362083645,1747983051073,-400.0,0.00016438,2]
[362083646,1747983051083,-1900.21,0.00016438,2]
[362083647,1747983051092,-430.0,0.00016438,2]
[362083648,1747983051101,-430.0,0.00016438,2]
[362083649,1747983051111,-346.56852429,0.00016438,2]
[362083650,1747983051120,-500.0,0.00016711,2]
[362083651,1747983051130,-500.0,0.00016711,2]
[362083652,1747983051140,-500.0,0.00016711,2]
[362083653,1747983051150,-500.0,0.00016711,2]
[362083654,1747983051159,-311.10083697,0.00016711,2]
[362083655,1747983051168,-500.0,0.00016711,2]
[362083656,1747983051178,-500.0,0.00016711,2]
[362083657,1747983051187,-500.0,0.00016711,2]
[362083658,1747983051196,-500.0,0.00016711,2]
[362083659,1747983051205,-500.0,0.00016711,2]
[362083660,1747983051215,-500.0,0.00016711,2]
[362083661,1747983051227,-500.0,0.00016711,2]
[362083662,1747983051235,-500.0,0.00016711,2]
[362083663,1747983051244,-500.0,0.00016711,2]
[362083664,1747983051254,-500.0,0.00016711,2]
[362083665,1747983051263,-648.92545699,0.00016711,2]
[362083666,1747983051273,-500.0,0.00016711,2]
[362083667,1747983051282,-479.89477099,0.00016711,2]
[362083668,1747983051292,-402.98358565,0.00016712,2]
[362083669,1747983051302,-282.02260436,0.00016712,2]
[362083670,1747983051312,-413.3163735,0.00016712,2]
[362083671,1747983051322,-456.96871785,0.00016712,2]
[362083672,1747983051331,-302.07009907,0.00016712,2]
[362083673,1747983051341,-430.0,0.00016712,2]
[362083674,1747983051350,-151.0,0.00016712,2]
[362083675,1747983051361,-201.39041296,0.00016712,2]
[362083676,1747983051371,-430.0,0.00016712,2]
[362083677,1747983051382,-430.0,0.00016712,2]
[362083678,1747983051392,-152.89927351,0.00016712,2]
[362083679,1747983051402,-436.805114,0.00016712,2]
[362083680,1747983051411,-445.35739857,0.00016712,2]
[362083681,1747983051563,-357.60014423,0.00016712,2]
[362083682,1747983051573,-371.64706193,0.00016712,2]
[362083683,1747983051583,-430.0,0.00016712,2]
[362083684,1747983051593,-430.0,0.00016712,2]
[362083685,1747983051603,-430.0,0.00016712,2]
[362083686,1747983051613,-472.10452465,0.00016712,2]
[362083687,1747983051624,-325.56019906,0.00016712,2]
[362083688,1747983051634,-430.0,0.00016712,2]
[362083689,1747983051644,-430.0,0.00016712,2]
[362083690,1747983051656,-445.71592377,0.00016712,2]
[362083691,1747983051666,-430.0,0.00016712,2]
[362083692,1747983051677,-430.0,0.00016712,2]
[362083693,1747983051687,-430.0,0.00016712,2]
[362083694,1747983051696,-430.0,0.00016712,2]
[362083695,1747983051706,-430.0,0.00016712,2]
[362083696,1747983051716,-442.54151808,0.00016712,2]
[362083697,1747983051726,-470.0,0.00016712,2]
[362083698,1747983051737,-430.0,0.00016712,2]
[362083699,1747983051747,-456.51529572,0.00016712,2]
[362083700,1747983051756,-430.0,0.00016712,2]
[362083701,1747983051765,-430.0,0.00016712,2]
[362083702,1747983051776,-430.0,0.00016712,2]
[362083703,1747983051786,-439.8107558,0.00016712,2]
[362083704,1747983051795,-398.70368208,0.00016712,2]
[362083705,1747983051805,-430.0,0.00016712,2]
[362083706,1747983051814,-430.0,0.00016712,2]
[362083707,1747983051824,-430.0,0.00016712,2]
[362083708,1747983051833,-490.0,0.00016712,2]
[362083709,1747983051843,-254.36619315,0.00016712,2]
[362083710,1747983051852,-453.30075713,0.00016712,2]
[362083711,1747983051861,-430.0,0.00016712,2]
[362083712,1747983051870,-432.30049304,0.00016712,2]
[362083713,1747983051879,-443.92716718,0.00016712,2]
[362083714,1747983051889,-430.0,0.00016712,2]
[362083715,1747983051899,-430.0,0.00016712,2]
[362083716,1747983051908,-430.0,0.00016712,2]
[362083717,1747983051918,-430.0,0.00016712,2]
[362083718,1747983051927,-470.0,0.00016712,2]
[362083719,1747983051936,-430.0,0.00016712,2]
[362083720,1747983051946,-470.0,0.00016712,2]
[362083721,1747983051956,-430.0,0.00016712,2]
[362083722,1747983051965,-480.1771151,0.00016712,2]
[362083723,1747983051974,-470.0,0.00016712,2]
[362083724,1747983051984,-470.0,0.00016712,2]
[362083725,1747983051993,-430.0,0.00016712,2]
[362083726,1747983052002,-352.20381841,0.00016712,2]
[362083727,1747983052011,-430.0,0.00016712,2]
[362083728,1747983052020,-430.0,0.00016712,2]
[362083729,1747983052032,-430.0,0.00016712,2]
[362083730,1747983052041,-430.0,0.00016712,2]
[362083731,1747983052050,-430.0,0.00016712,2]
[362083732,1747983052059,-430.0,0.00016712,2]
[362083733,1747983052069,-430.0,0.00016712,2]
[362083734,1747983052079,-430.0,0.00016712,2]
[362083735,1747983052088,-430.0,0.00016712,2]
[362083736,1747983052099,-441.59,0.00016712,2]
[362083737,1747983052108,-430.0,0.00016712,2]
[362083738,1747983052117,-188.80009099,0.00016712,2]
[362083739,1747983052127,-430.0,0.00016712,2]
[362083740,1747983052136,-439.15417083,0.00016712,2]
[362083741,1747983052146,-430.0,0.00016712,2]
[362083742,1747983052155,-371.87921462,0.00016712,2]
[362083743,1747983052165,-430.0,0.00016712,2]
[362083744,1747983052175,-430.0,0.00016712,2]
[362083745,1747983052185,-440.0,0.00016712,2]
[362083746,1747983052196,-430.0,0.00016712,2]
[362083747,1747983052206,-192.08360853,0.00016712,2]
[362083748,1747983052216,-445.29519821,0.00016712,2]
[362083749,1747983052228,-430.0,0.00016712,2]
[362083750,1747983052238,-430.0,0.00016712,2]
[362083751,1747983052248,-580.53,0.00016712,2]
[362083752,1747983052258,-430.0,0.00016712,2]
[362083753,1747983052267,-430.0,0.00016712,2]
[362083754,1747983052280,-430.0,0.00016712,2]
[362083755,1747983052290,-430.0,0.00016712,2]